bitfinex/quotes_SOLUSD_20241121
["timestamp","ask_amount","ask_price","bid_price","bid_amount"]
[1732185043020,14.93433399,240.82,240.7,23.776884]
[1732185043195,14.93433399,240.82,240.71,10.84857983]
[1732185043395,0.62361034,240.95,240.77,15.1931]
[1732185043609,14.93433399,240.95,240.79,4.152]
[1732185043792,14.93433399,240.95,240.8,35.31879716]
[1732185043996,14.93433399,240.91,240.8,35.31879716]
[1732185044322,14.93433399,240.87,240.8,11.54191316]
[1732185044489,14.93433399,240.89,240.8,11.54191316]
[1732185044815,0.62361034,240.94,240.8,11.54191316]
[1732185045117,14.93433399,240.89,240.8,11.54191316]
[1732185049319,14.93433399,240.95,240.81,23.776884]
[1732185049522,14.93433399,240.97,240.84,22.4841]
[1732185049730,14.93433399,240.97,240.85,11.54191316]
[1732185049933,1.12361034,241.03,240.85,11.54191316]
[1732185050128,14.93433399,240.98,240.85,11.54191316]
[1732185050609,14.93433399,240.98,240.86,23.776884]
[1732185050929,6.5286,241.07,240.85,11.54191316]
[1732185050930,14.93433399,241.01,240.88,23.776884]
[1732185051107,14.93433399,241.01,240.89,5.87460078]
[1732185051611,14.93433399,241.01,240.9,23.776884]
[1732185051808,14.93433399,241.01,240.9,5.87460078]
[1732185052114,14.93433399,241.01,240.91,23.776884]
[1732185052624,14.93433399,241.01,240.92,16.0148]
[1732185052798,14.93433399,241.03,240.93,23.776884]
[1732185052998,22.1889,241.12,240.94,11.91500078]
[1732185052999,0.62361034,241.11,240.94,11.91500078]
[1732185053206,0.62361034,241.11,240.95,23.776884]
[1732185053418,22.1772,241.19,240.95,23.776884]
[1732185053419,14.93433399,241.12,240.96,11.54191316]
[1732185053725,14.93433399,241.12,240.99,23.776884]
[1732185053941,14.93433399,241.12,241.0,11.54191316]
[1732185054603,14.93433399,241.12,241.01,23.776884]
[1732185054807,14.93433399,241.12,241.0,11.54191316]
[1732185055125,0.5,241.17,241.0,5.87460078]
[1732185055126,14.93433399,241.08,241.0,5.87460078]
[1732185055426,14.93433399,241.07,241.0,5.87460078]
[1732185055800,1.12361034,241.17,241.0,5.87460078]
[1732185056025,14.93433399,241.08,241.0,5.87460078]
[1732185056439,14.93433399,241.09,241.0,5.87460078]
[1732185056723,14.93433399,241.09,241.0,11.54191316]
[1732185057104,14.93433399,241.02,240.98,16.0148]
[1732185057323,14.93433399,241.01,240.98,16.0148]
[1732185057622,15.55794433,241.08,240.94,6.0404]
[1732185057623,14.93433399,240.99,240.94,6.0404]
[1732185057829,14.93433399,241.01,240.94,6.0404]
[1732185058047,14.93433399,241.02,240.95,5.87460078]
[1732185058611,14.93433399,241.04,240.95,5.87460078]
[1732185059017,14.93433399,241.04,240.96,5.66731238]
[1732185059219,14.93433399,241.06,240.97,5.87460078]
[1732185059520,14.93433399,241.1,240.98,29.44419638]
[1732185059728,14.93433399,241.1,240.99,21.97550078]
[1732185059920,14.93433399,241.1,241.0,5.66731238]
[1732185060122,14.93433399,241.1,241.01,5.87460078]
[1732185060605,14.93433399,241.12,241.01,11.54191316]
[1732185062104,14.93433399,241.1,241.01,11.54191316]
[1732185062635,14.93433399,241.1,241.02,5.66731238]
[1732185063148,0.62361034,241.18,241.02,5.66731238]
[1732185063149,14.93433399,241.08,241.02,5.66731238]
[1732185063328,14.93433399,241.04,241.01,5.87460078]
[1732185063631,14.93433399,241.02,240.99,16.1009]
[1732185064006,0.62361034,241.07,240.99,16.1009]
[1732185064326,14.93433399,241.08,241.0,11.54191316]
[1732185065518,14.93433399,241.06,241.0,11.54191316]
[1732185065723,14.93433399,241.04,241.0,5.87460078]
[1732185066316,1.12361034,241.14,241.0,5.87460078]
[1732185066317,14.93433399,241.06,241.0,5.87460078]
[1732185068115,23.776884,241.13,241.0,5.87460078]
[1732185068311,14.93433399,241.01,240.99,16.1009]
[1732185068511,14.93433399,241.01,240.95,5.87460078]
[1732185068732,14.93433399,241.08,240.95,5.87460078]
[1732185068733,14.93433399,240.99,240.95,5.87460078]
[1732185069032,0.62361034,241.07,240.95,11.54191316]
[1732185069209,23.776884,241.15,240.96,5.66731238]
[1732185069410,14.93433399,241.05,240.97,5.87460078]
[1732185069629,14.93433399,241.03,240.97,5.87460078]
[1732185070034,14.93433399,240.98,240.97,5.87460078]
[1732185070529,14.93433399,241.0,240.97,5.87460078]
[1732185070713,14.93433399,241.04,240.97,5.87460078]
[1732185070915,14.93433399,241.04,240.98,5.66731238]
[1732185071124,0.62361034,241.03,240.99,5.87460078]
[1732185071734,14.93433399,241.04,240.99,5.87460078]
[1732185072237,14.93433399,241.06,241.0,5.66731238]
[1732185072416,14.93433399,241.04,240.99,5.87460078]
[1732185072728,14.93433399,241.04,240.94,5.66731238]
[1732185072934,0.62361034,241.03,240.94,5.66731238]
[1732185073132,14.93433399,241.04,240.94,5.66731238]
[1732185073334,14.93433399,241.04,240.95,5.450685]
[1732185073535,14.93433399,241.04,240.96,5.66731238]
[1732185073743,1.12361034,241.13,240.96,5.66731238]
[1732185073744,14.93433399,241.02,240.96,5.66731238]
[1732185074031,0.62361034,241.14,241.0,23.776884]
[1732185074217,14.93433399,241.14,241.02,23.776884]
[1732185074410,14.93433399,241.14,241.03,11.11799738]
[1732185074816,14.93433399,241.12,241.03,11.11799738]
[1732185075309,14.93433399,241.1,241.03,11.11799738]
[1732185075511,0.62361034,241.09,241.03,11.11799738]
[1732185075809,14.93433399,241.08,241.03,5.66731238]
[1732185076012,0.62361034,241.07,241.03,5.66731238]
[1732185076209,14.93433399,241.06,241.03,5.66731238]
[1732185076720,14.93433399,241.06,240.99,16.0487]
[1732185076919,14.93433399,241.06,241.0,5.66731238]
[1732185078313,14.93433399,241.1,241.0,5.66731238]
[1732185078531,0.62361034,241.15,241.01,5.450685]
[1732185078745,23.74273477,241.12,241.02,5.66731238]
[1732185078942,0.62361034,241.11,241.03,5.450685]
[1732185079234,0.62361034,241.11,241.04,5.66731238]
[1732185080035,23.74273477,241.15,241.04,11.11799738]
[1732185080211,0.62361034,241.14,241.04,11.11799738]
[1732185080415,23.74273477,241.19,241.06,16.5096]
[1732185080619,23.74273477,241.19,241.07,17.32229738]
[1732185080818,23.74273477,241.21,241.07,17.32229738]
[1732185081020,23.74273477,241.21,241.08,23.776884]
[1732185081322,1.12361034,241.28,241.1,23.776884]
[1732185081323,23.74273477,241.23,241.1,23.776884]
[1732185081521,23.74273477,241.21,241.11,5.66731238]
[1732185082241,23.74273477,241.23,241.12,23.776884]
[1732185082422,0.62361034,241.22,241.11,11.11799738]
[1732185082744,23.74273477,241.21,241.11,11.11799738]
[1732185082936,0.62361034,241.2,241.11,5.66731238]
[1732185083332,23.74273477,241.19,241.11,5.66731238]
[1732185083527,0.62361034,241.18,241.11,5.66731238]
[1732185083739,23.74273477,241.19,241.11,5.66731238]
[1732185084047,23.74273477,241.14,241.07,6.2043]
[1732185084223,0.62361034,241.13,241.07,6.2043]
[1732185084640,0.62361034,241.13,241.07,11.87161238]
[1732185087245,23.74273477,241.14,241.08,5.66731238]
[1732185087841,23.74273477,241.16,241.09,5.450685]
[1732185088045,0.5,241.27,241.1,5.66731238]
[1732185088046,23.74273477,241.2,241.1,5.66731238]
[1732185088254,23.74273477,241.18,241.1,5.66731238]
[1732185088538,0.62361034,241.17,241.1,5.66731238]
[1732185088750,23.74273477,241.18,241.1,5.66731238]
[1732185088924,23.74273477,241.18,241.11,5.450685]
[1732185089124,23.74273477,241.18,241.11,11.11799738]
[1732185089325,23.74273477,241.2,241.11,11.11799738]
[1732185089534,0.62361034,241.19,241.11,11.11799738]
[1732185089729,23.74273477,241.18,241.11,11.11799738]
[1732185092724,23.74273477,241.2,241.11,5.450685]
[1732185092928,23.74273477,241.22,241.12,5.66731238]
[1732185093146,23.74273477,241.22,241.13,5.450685]
[1732185093643,23.74273477,241.24,241.14,21.17621238]
[1732185093830,23.74273477,241.28,241.15,29.227569]
[1732185094025,23.74273477,241.28,241.16,5.66731238]
[1732185094229,23.74273477,241.28,241.17,29.227569]
[1732185094651,23.74273477,241.28,241.17,34.89488138]
[1732185094867,0.62361034,241.34,241.18,6.5575]
[1732185095147,23.74273477,241.29,241.19,5.450685]
[1732185095325,23.74273477,241.29,241.2,23.776884]
[1732185095525,23.74273477,241.29,241.2,29.227569]
[1732185096340,23.74273477,241.33,241.21,5.450685]
[1732185096527,0.62361034,241.32,241.22,23.776884]
[1732185096727,23.74273477,241.31,241.22,29.227569]
[1732185097748,23.74273477,241.31,241.23,5.450685]
[1732185097951,23.74273477,241.31,241.24,23.776884]
[1732185098279,23.74273477,241.27,241.21,5.66731238]
[1732185098461,23.74273477,241.27,241.19,23.776884]
[1732185098827,23.74273477,241.27,241.18,6.5575]
[1732185099046,23.74273477,241.23,241.18,6.5575]
[1732185099548,23.74273477,241.25,241.19,5.450685]
[1732185099733,23.74273477,241.25,241.19,11.11799738]
[1732185099932,0.62361034,241.24,241.18,6.5575]
[1732185101637,23.74273477,241.25,241.19,11.11799738]
[1732185102636,23.74273477,241.27,241.19,11.11799738]
[1732185102865,23.74273477,241.29,241.19,11.11799738]
[1732185103150,23.74273477,241.33,241.22,23.776884]
[1732185103351,23.74273477,241.35,241.24,23.776884]
[1732185103544,0.62361034,241.34,241.24,23.776884]
[1732185104133,23.74273477,241.35,241.24,29.44419638]
[1732185104333,23.74273477,241.35,241.25,11.11799738]
[1732185104567,23.74273477,241.35,241.26,23.776884]
[1732185104862,0.62361034,241.34,241.26,23.776884]
[1732185105439,23.74273477,241.35,241.26,34.89488138]
[1732185106156,0.62361034,241.34,241.26,34.89488138]
[1732185106359,23.74273477,241.33,241.26,34.89488138]
[1732185106669,23.74273477,241.33,241.26,11.11799738]
[1732185106954,23.74273477,241.31,241.26,11.11799738]
[1732185107151,0.62361034,241.3,241.26,11.11799738]
[1732185107364,0.62361034,241.3,241.26,5.66731238]
[1732185107957,23.74273477,241.31,241.26,5.66731238]
[1732185108160,23.74273477,241.31,241.26,5.450685]
[1732185108332,23.74273477,241.33,241.26,5.450685]
[1732185108665,23.74273477,241.31,241.26,5.450685]
[1732185108862,23.74273477,241.29,241.26,5.450685]
[1732185109048,23.74273477,241.27,241.22,5.66731238]
[1732185109250,0.62361034,241.26,241.22,5.66731238]
[1732185110166,23.74273477,241.23,241.21,5.450685]
[1732185110344,0.62361034,241.22,241.16,11.11799738]
[1732185110862,23.74273477,241.23,241.16,11.11799738]
[1732185111258,23.74273477,241.25,241.16,11.11799738]
[1732185111451,23.74273477,241.27,241.17,23.776884]
[1732185111763,23.74273477,241.25,241.16,11.11799738]
[1732185111937,0.62361034,241.24,241.16,11.11799738]
[1732185115451,14.8242748,241.25,241.16,11.11799738]
[1732185115964,0.62361034,241.24,241.16,11.11799738]
[1732185116565,14.8242748,241.21,241.16,5.66731238]
[1732185116754,0.62361034,241.2,241.16,5.66731238]
[1732185117264,14.8242748,241.23,241.16,11.11799738]
[1732185117567,0.62361034,241.22,241.16,11.11799738]
[1732185117775,0.62361034,241.22,241.17,5.450685]
[1732185117973,0.62361034,241.22,241.18,5.66731238]
[1732185118175,14.8242748,241.21,241.17,5.450685]
[1732185118360,14.8242748,241.21,241.15,16.6508]
[1732185119273,14.8242748,241.32,241.13,5.450685]
[1732185119274,14.8242748,241.19,241.13,5.450685]
[1732185119447,14.8242748,241.32,241.12,5.66731238]
[1732185119448,14.8242748,241.17,241.12,5.66731238]
[1732185119651,0.62361034,241.16,241.12,5.66731238]
[1732185119857,14.8242748,241.15,241.09,15.2333]
[1732185120061,14.8242748,241.13,241.09,15.2333]
[1732185120556,0.62361034,241.12,241.09,15.2333]
[1732185120775,0.62361034,241.12,241.07,11.11799738]
[1732185121753,15.44788514,241.19,241.08,11.11799738]
[1732185121951,0.62361034,241.19,241.08,11.11799738]
[1732185122482,15.44788514,241.19,241.08,11.11799738]
[1732185122868,14.8242748,241.17,241.08,11.11799738]
[1732185123072,14.8242748,241.18,241.08,11.11799738]
[1732185123290,14.8242748,241.2,241.08,11.11799738]
[1732185123572,14.8242748,241.2,241.09,23.776884]
[1732185123784,14.8242748,241.22,241.11,23.776884]
[1732185123989,0.62361034,241.21,241.11,29.227569]
[1732185124568,14.8242748,241.2,241.11,5.450685]
[1732185124768,0.62361034,241.19,241.11,5.450685]
[1732185128565,0.62361034,241.19,241.11,11.11799738]
[1732185129188,14.8242748,241.18,241.11,11.11799738]
[1732185129387,0.62361034,241.17,241.11,11.11799738]
[1732185130087,14.8242748,241.22,241.12,11.11799738]
[1732185130271,0.62361034,241.21,241.12,11.11799738]
[1732185130468,15.44788514,241.26,241.13,39.019484]
[1732185130669,15.44788514,241.26,241.14,11.11799738]
[1732185130901,14.8242748,241.24,241.14,11.11799738]
[1732185131070,0.62361034,241.23,241.14,11.11799738]
[1732185132279,0.62361034,241.28,241.15,23.776884]
[1732185132491,0.62361034,241.28,241.17,23.776884]
[1732185132700,0.62361034,241.28,241.18,11.11799738]
[1732185133293,0.62361034,241.29,241.18,11.11799738]
[1732185134172,14.8242748,241.28,241.18,11.11799738]
[1732185134473,0.62361034,241.27,241.18,11.11799738]
[1732185134888,14.8242748,241.24,241.18,5.66731238]
[1732185135187,0.62361034,241.23,241.14,23.776884]
[1732185135885,14.8242748,241.26,241.15,11.11799738]
[1732185136090,0.62361034,241.25,241.15,11.11799738]
[1732185137290,14.8242748,241.24,241.15,11.11799738]
[1732185137499,14.8242748,241.26,241.15,11.11799738]
[1732185137679,0.62361034,241.25,241.15,11.11799738]
[1732185138497,0.62361034,241.25,241.15,10.61799738]
[1732185138686,14.8242748,241.28,241.15,10.61799738]
[1732185138887,12.78715628,241.37,241.15,10.61799738]
[1732185138888,15.44788514,241.33,241.16,0.62176773]
[1732185139199,15.44788514,241.33,241.17,26.70288627]
[1732185139582,15.44788514,241.33,241.18,23.776884]
[1732185139776,14.8242748,241.31,241.19,5.66731238]
[1732185139978,14.8242748,241.27,241.19,5.66731238]
[1732185140192,0.62361034,241.26,241.19,5.66731238]
[1732185140396,14.8242748,241.25,241.19,5.66731238]
[1732185140702,0.62361034,241.24,241.19,5.66731238]
[1732185141074,0.62361034,241.24,241.17,15.621]
[1732185142602,14.8242748,241.25,241.17,15.621]
[1732185142900,0.62361034,241.24,241.17,15.621]
[1732185143794,14.8242748,241.25,241.17,15.621]
[1732185146596,14.8242748,241.27,241.18,23.776884]
[1732185146787,0.62361034,241.31,241.18,23.776884]
[1732185146788,14.8242748,241.29,241.18,34.85877027]
[1732185146999,0.62361034,241.28,241.18,34.85877027]
[1732185148973,14.8242748,241.27,241.18,11.08188627]
[1732185149178,14.8242748,241.25,241.18,11.08188627]
[1732185149399,0.62361034,241.24,241.18,11.08188627]
[1732185153603,14.8242748,241.23,241.18,11.08188627]
[1732185153805,14.8242748,241.2,241.17,15.621]
[1732185153995,14.8242748,241.22,241.17,15.621]
[1732185154187,14.8242748,241.23,241.17,15.621]
[1732185158703,9.48767059,241.23,241.17,15.621]
[1732185159910,0.62361034,241.22,241.17,15.621]
[1732185160307,9.48767059,241.19,241.17,15.621]
[1732185160499,9.48767059,241.19,241.13,5.66731238]
[1732185160700,9.48767059,241.19,241.14,5.41457389]
[1732185160891,0.62361034,241.18,241.14,5.41457389]
[1732185161296,9.48767059,241.21,241.14,11.08188627]
[1732185162214,0.62361034,241.2,241.15,5.66731238]
[1732185165921,0.62361034,241.25,241.16,5.41457389]
[1732185166211,9.48767059,241.24,241.17,5.66731238]
[1732185166419,9.48767059,241.22,241.17,5.66731238]
[1732185166594,0.62361034,241.21,241.17,5.66731238]
[1732185166794,0.62361034,241.21,241.17,11.08188627]
[1732185167096,9.48767059,241.24,241.18,5.41457389]
[1732185167294,0.62361034,241.23,241.18,5.41457389]
[1732185168919,9.48767059,241.22,241.18,5.41457389]
[1732185169094,0.62361034,241.21,241.18,5.41457389]
[1732185170502,9.48767059,241.19,241.11,15.7262]
[1732185170813,0.62361034,241.18,241.12,11.08188627]
[1732185171020,0.62361034,241.18,241.13,5.41457389]
[1732185172394,0.62361034,241.18,241.13,11.08188627]
[1732185173118,0.62361034,241.25,241.14,5.66731238]
[1732185173309,9.48767059,241.23,241.15,5.41457389]
[1732185173506,0.62361034,241.22,241.16,5.66731238]
[1732185173823,0.62361034,241.22,241.17,5.41457389]
[1732185174221,9.48767059,241.21,241.17,5.41457389]
[1732185174425,0.62361034,241.2,241.17,5.41457389]
[1732185174895,9.48767059,241.19,241.16,5.66731238]
[1732185175102,0.62361034,241.18,241.16,5.66731238]
[1732185176198,6.44858492,241.26,241.16,5.66731238]
[1732185176199,9.48767059,241.22,241.16,11.08188627]
[1732185176403,0.62361034,241.21,241.16,11.08188627]
[1732185177507,9.48767059,241.2,241.16,11.08188627]
[1732185177710,9.48767059,241.18,241.16,11.08188627]
[1732185178801,0.62361034,241.17,241.05,15.8265]
[1732185179017,9.48767059,241.12,241.07,11.08188627]
[1732185179218,9.48767059,241.08,241.07,11.08188627]
[1732185179430,9.48767059,241.08,240.99,5.41457389]
[1732185179618,0.62361034,241.07,241.02,5.66731238]
[1732185179921,0.62361034,241.07,241.02,11.08188627]
[1732185180324,9.48767059,241.04,241.02,11.08188627]
[1732185180626,9.48767059,241.06,241.03,11.08188627]
[1732185180926,0.62361034,241.13,241.03,11.08188627]
[1732185181221,9.48767059,241.12,241.03,11.08188627]
[1732185181433,9.48767059,241.14,241.03,11.08188627]
[1732185181622,0.62361034,241.16,241.03,11.08188627]
[1732185181920,6.44858492,241.18,241.04,6.55]
[1732185181921,0.62361034,241.18,241.04,6.55]
[1732185182095,0.62361034,241.18,241.07,23.776884]
[1732185182300,10.11128093,241.18,241.08,11.08188627]
[1732185182523,0.62361034,241.21,241.08,11.08188627]
[1732185182703,9.48767059,241.2,241.08,11.08188627]
[1732185182908,0.62361034,241.19,241.08,11.08188627]
[1732185183810,0.62361034,241.23,241.09,39.724484]
[1732185184012,10.11128093,241.23,241.1,11.08188627]
[1732185184213,9.48767059,241.21,241.1,11.08188627]
[1732185184415,0.62361034,241.2,241.1,11.08188627]
[1732185186128,10.11128093,241.26,241.11,23.776884]
[1732185186329,0.62361034,241.26,241.13,23.776884]
[1732185186533,10.11128093,241.28,241.15,23.776884]
[1732185186707,9.48767059,241.26,241.15,34.85877027]
[1732185186907,0.62361034,241.25,241.15,34.85877027]
[1732185187106,0.62361034,241.25,241.16,5.41457389]
[1732185187630,9.48767059,241.22,241.16,5.41457389]
[1732185187835,9.48767059,241.2,241.15,5.66731238]
[1732185188010,9.48767059,241.24,241.15,5.66731238]
[1732185188208,0.62361034,241.23,241.15,5.66731238]
[1732185190123,6.44858492,241.28,241.15,5.66731238]
[1732185190124,9.48767059,241.28,241.16,23.776884]
[1732185190321,0.62361034,241.27,241.16,23.776884]
[1732185191928,9.48767059,241.27,241.16,23.776884]
[1732185192105,0.62361034,241.26,241.16,23.776884]
[1732185192309,9.48767059,241.27,241.16,34.85877027]
[1732185192522,9.48767059,241.27,241.17,11.08188627]
[1732185194119,9.48767059,241.27,241.18,15.7572]
[1732185194313,5.18990434,241.33,241.19,23.776884]
[1732185194521,9.48767059,241.3,241.19,34.85877027]
[1732185196143,9.48767059,241.26,241.19,11.08188627]
[1732185196422,9.48767059,241.26,241.19,5.66731238]
[1732185196629,9.48767059,241.24,241.19,5.66731238]
[1732185196932,37.95068236,241.32,241.18,15.7572]
[1732185196933,9.48767059,241.22,241.18,15.7572]
[1732185197329,9.48767059,241.24,241.18,15.7572]
[1732185199838,9.48767059,241.22,241.18,15.7572]
[1732185203136,9.48767059,241.24,241.18,15.7572]
[1732185204723,9.48767059,241.2,241.14,5.66731238]
[1732185204925,9.48767059,241.17,241.14,5.66731238]
[1732185207038,9.48767059,241.15,241.14,5.66731238]
[1732185207241,9.48767059,241.15,241.08,15.1177]
[1732185207418,9.48767059,241.12,241.08,15.1177]
[1732185208517,9.48767059,241.12,241.08,20.53227389]
[1732185208716,9.48767059,241.12,241.08,26.19958627]
[1732185209536,37.95068236,241.2,241.09,11.08188627]
[1732185209726,9.48767059,241.14,241.09,11.08188627]
[1732185210137,23.776884,241.25,241.09,11.08188627]
[1732185210428,9.48767059,241.15,241.09,11.08188627]
[1732185210821,9.48767059,241.17,241.09,11.08188627]
[1732185211437,6.1293,241.26,241.1,23.776884]
[1732185211649,9.48767059,241.24,241.12,23.776884]
[1732185211948,9.48767059,241.24,241.13,11.08188627]
[1732185212836,14.82459524,241.24,241.13,11.08188627]
[1732185214236,14.82459524,241.22,241.13,11.08188627]
[1732185215321,14.82459524,241.2,241.13,11.08188627]
[1732185216449,14.82459524,241.18,241.08,15.1177]
[1732185216758,14.82459524,241.18,241.08,26.19958627]
[1732185218939,14.82459524,241.18,241.09,11.08188627]
[1732185221562,14.82459524,241.22,241.1,23.776884]
[1732185221735,14.82459524,241.22,241.11,11.08188627]
[1732185222760,12.89716984,241.3,241.12,23.776884]
[1732185223063,14.82459524,241.24,241.13,11.08188627]
[1732185223561,14.82459524,241.26,241.15,16.1216]
[1732185223758,14.82459524,241.26,241.16,5.66731238]
[1732185225885,14.82459524,241.28,241.16,11.97171238]
[1732185226048,14.82459524,241.28,241.17,5.41457389]
[1732185226245,14.82459524,241.28,241.17,11.08188627]
[1732185226449,12.89716984,241.35,241.18,23.776884]
[1732185226644,14.82459524,241.29,241.18,34.85877027]
[1732185226966,14.82459524,241.27,241.18,11.08188627]
[1732185228967,14.82459524,241.27,241.16,2.38628627]
[1732185230367,15.6375,241.37,241.17,34.05841181]
[1732185230566,14.82459524,241.28,241.17,34.05841181]
[1732185231853,14.82459524,241.28,241.19,23.776884]
[1732185232272,14.82459524,241.3,241.2,5.25800648]
[1732185233282,14.82459524,241.32,241.2,5.25800648]
[1732185233568,14.82459524,241.32,241.21,15.3894]
[1732185234669,9.48133678,241.32,241.21,15.3894]
[1732185236966,9.48133678,241.34,241.22,34.05841181]
[1732185237457,9.48133678,241.36,241.22,34.05841181]
[1732185239586,9.48133678,241.34,241.22,34.05841181]
[1732185239791,9.48133678,241.32,241.22,34.05841181]
[1732185240657,23.776884,241.41,241.22,34.05841181]
[1732185240852,9.48133678,241.35,241.22,34.05841181]
[1732185242177,12.89716984,241.42,241.22,34.05841181]
[1732185242380,9.48133678,241.37,241.24,23.776884]
[1732185242675,9.48133678,241.37,241.25,5.25800648]
[1732185243062,9.48133678,241.37,241.26,23.776884]
[1732185243456,9.48133678,241.33,241.27,15.5839]
[1732185243759,23.776884,241.42,241.27,15.5839]
[1732185243972,9.48133678,241.35,241.27,15.5839]
[1732185245876,22.2271,241.44,241.28,23.776884]
[1732185246081,6.5896,241.44,241.28,23.776884]
[1732185246261,9.48133678,241.36,241.27,15.5839]
[1732185246470,9.48133678,241.34,241.27,15.5839]
[1732185247179,23.776884,241.43,241.27,15.5839]
[1732185247384,9.48133678,241.3,241.27,15.5839]
[1732185247555,13.39716984,241.42,241.27,15.5839]
[1732185247760,9.48133678,241.32,241.27,15.5839]
[1732185248096,12.89716984,241.43,241.27,15.5839]
[1732185248410,9.48133678,241.37,241.28,10.28152781]
[1732185248679,57.41211696,241.44,241.28,10.28152781]
[1732185248680,9.48133678,241.39,241.28,10.28152781]
[1732185248886,12.89716984,241.48,241.29,23.776884]
[1732185249092,9.48133678,241.44,241.31,23.776884]
[1732185249261,9.48133678,241.44,241.33,23.776884]
[1732185249462,9.48133678,241.46,241.34,10.28152781]
[1732185249762,12.89716984,241.52,241.35,23.776884]
[1732185250069,9.48133678,241.51,241.38,23.776884]
[1732185250268,9.48133678,241.52,241.4,23.776884]
[1732185250479,12.89716984,241.57,241.42,23.776884]
[1732185250784,9.48133678,241.55,241.43,10.28152781]
[1732185251172,9.48133678,241.55,241.44,6.2582]
[1732185251377,9.48133678,241.55,241.45,34.33285626]
[1732185251562,12.89716984,241.63,241.45,34.33285626]
[1732185251760,9.48133678,241.55,241.45,34.33285626]
[1732185251976,32.35563969,241.66,241.45,34.33285626]
[1732185251977,19.45846984,241.66,241.45,34.33285626]
[1732185252194,12.89716984,241.68,241.47,23.776884]
[1732185252376,9.48133678,241.61,241.48,11.31430559]
[1732185252687,37.92534712,241.68,241.48,11.31430559]
[1732185252688,14.77875417,241.68,241.49,23.776884]
[1732185252907,14.77875417,241.63,241.51,23.776884]
[1732185253065,14.77875417,241.64,241.53,23.776884]
[1732185253267,14.77875417,241.64,241.54,11.31430559]
[1732185253461,14.77875417,241.63,241.54,11.31430559]
[1732185254478,14.77875417,241.61,241.54,11.31430559]
[1732185254685,14.77875417,241.57,241.54,5.80352133]
[1732185254868,14.77875417,241.55,241.46,16.575]
[1732185255282,14.77875417,241.53,241.46,27.88930559]
[1732185255491,14.77875417,241.59,241.47,5.80352133]
[1732185255668,14.77875417,241.62,241.47,11.31430559]
[1732185256000,6.2577,241.72,241.47,15.46630559]
[1732185256197,14.77875417,241.65,241.47,15.46630559]
[1732185256495,14.77875417,241.66,241.47,11.31430559]
[1732185256670,14.77875417,241.68,241.48,24.39770111]
[1732185256866,14.77875417,241.68,241.5,23.776884]
[1732185257090,14.77875417,241.68,241.52,23.776884]
[1732185257390,14.77875417,241.68,241.54,23.776884]
[1732185257581,14.77875417,241.67,241.56,23.776884]
[1732185257783,14.77875417,241.65,241.57,11.54635559]
[1732185258099,14.77875417,241.68,241.57,11.54635559]
[1732185258402,6.2577,241.72,241.57,11.54635559]
[1732185258566,14.77875417,241.67,241.57,11.54635559]
[1732185258966,14.77875417,241.66,241.57,11.54635559]
[1732185259292,14.77875417,241.64,241.57,11.54635559]
[1732185260194,14.77875417,241.61,241.51,23.776884]
[1732185260490,14.77875417,241.57,241.47,6.03557133]
[1732185260691,14.77875417,241.57,241.47,11.54635559]
[1732185260888,14.77875417,241.57,241.46,16.575]
[1732185260889,14.77875417,241.57,241.48,11.54635559]
[1732185261088,14.77875417,241.59,241.48,11.54635559]
[1732185261292,14.77875417,241.63,241.48,11.54635559]
[1732185261482,14.77875417,241.65,241.48,11.54635559]
[1732185261690,14.77875417,241.65,241.48,12.04635559]
[1732185261876,14.77875417,241.66,241.49,23.776884]
[1732185262194,6.2577,241.72,241.49,23.776884]
[1732185262195,14.77875417,241.64,241.51,23.776884]
[1732185262391,14.77875417,241.64,241.53,23.776884]
[1732185262594,14.77875417,241.64,241.55,23.776884]
[1732185262780,14.77875417,241.64,241.56,11.54635559]
[1732185263189,6.2577,241.72,241.55,23.776884]
[1732185263190,14.77875417,241.66,241.55,23.776884]
[1732185263577,14.77875417,241.66,241.55,33.53169515]
[1732185263803,14.77875417,241.66,241.56,4.91692133]
[1732185264300,14.77875417,241.66,241.56,9.75481115]
[1732185264478,14.77875417,241.66,241.57,4.83788982]
[1732185264903,14.77875417,241.66,241.58,15.2162]
[1732185265709,14.77875417,241.64,241.58,15.2162]
[1732185267377,14.77875417,241.62,241.58,15.2162]
[1732185267589,6.2577,241.72,241.58,15.2162]
[1732185267590,14.77875417,241.64,241.58,15.2162]
[1732185267901,14.77875417,241.64,241.59,4.83788982]
[1732185268306,14.778754,241.76,241.59,4.83788982]
[1732185268601,14.77875417,241.66,241.6,4.91692133]
[1732185268899,14.77875417,241.66,241.61,4.83788982]
[1732185269793,14.77875417,241.66,241.6,4.91692133]
[1732185270698,14.77875417,241.64,241.58,21.6865]
[1732185272292,14.77875417,241.62,241.58,15.2162]
[1732185273785,14.77875417,241.6,241.58,15.2162]
[1732185276582,14.77875417,241.68,241.58,15.2162]
[1732185276583,14.77875417,241.62,241.58,15.2162]